bitfinex-derivatives/quotes_BNBF0:USTF0_20250211
["timestamp","ask_amount","ask_price","bid_price","bid_amount"]
[1739272243574,1.39134925,639.52,636.96,0.28806767]
[1739272243771,1.39134925,639.52,636.97,0.28806767]
[1739272243975,1.39134925,639.52,636.98,0.28806767]
[1739272244172,1.39134925,639.52,636.99,0.28806767]
[1739272244370,1.39134925,639.52,637.0,0.28807762]
[1739272244574,1.39134925,639.07,637.04,1.16062582]
[1739272244771,1.39134925,639.07,637.05,0.28807762]
[1739272244976,1.39134925,639.07,637.05,0.9401792]
[1739272246180,1.39134925,639.07,637.06,0.94016911]
[1739272246477,1.39134925,639.07,637.07,0.2880743]
[1739272246677,1.39134925,639.07,637.08,0.2880743]
[1739272246879,1.39134925,638.99,637.09,0.2880743]
[1739272247076,1.39134925,638.99,637.1,0.2880743]
[1739272247277,1.39134925,638.99,637.03,1.16062582]
[1739272247278,1.39134925,638.99,637.04,0.2880743]
[1739272247473,1.39134925,638.99,637.05,0.2880743]
[1739272247676,1.39134925,638.99,637.03,1.16062582]
[1739272247876,1.39134925,638.99,637.04,0.28807983]
[1739272248879,1.39134925,639.04,637.04,0.28807983]
[1739272249078,1.39134925,639.04,637.0,0.94019018]
[1739272249273,1.39134925,639.04,637.01,0.28807983]
[1739272249475,1.39134925,639.04,637.0,0.28807983]
[1739272249674,1.39134925,639.04,636.99,1.16062582]
[1739272249675,1.39134925,639.04,637.01,0.28807983]
[1739272249872,1.39134925,639.04,637.0,0.28807983]
[1739272250073,1.39134925,639.04,636.99,1.16062582]
[1739272250273,1.39134925,639.04,637.0,0.28808482]
[1739272250580,1.39134925,639.04,637.0,0.94019863]
[1739272251576,1.39134925,638.95,637.0,0.94019863]
[1739272251781,1.39134925,638.95,637.01,0.94019863]
[1739272251981,1.39134925,638.95,636.99,0.94019863]
[1739272252482,1.39134925,638.95,636.99,0.28808482]
[1739272254379,3.32290207,639.1,637.0,1.16062582]
[1739272254578,1.39134925,639.1,637.01,0.28808482]
[1739272254781,3.9176366,639.1,637.01,0.28808482]
[1739272254978,3.9176366,639.1,637.02,0.28802144]
[1739272255182,3.9176366,639.1,637.01,0.28802144]
[1739272255383,3.9176366,639.1,637.01,0.94000249]
[1739272255981,1.39134925,639.1,637.01,0.94000249]
[1739272256682,4.45784017,639.2,637.21,1.16062582]
[1739272256683,1.39134925,639.19,637.21,1.16062582]
[1739272256884,1.39134925,639.19,637.22,0.28802144]
[1739272257188,9.60456064,639.19,637.22,0.28802144]
[1739272257490,5.68692404,639.18,637.22,0.28802144]
[1739272258083,1.93155282,639.18,637.22,0.28802144]
[1739272258286,3.9176366,639.19,637.22,0.28802144]
[1739272258687,1.39134925,639.08,637.22,0.28802144]
[1739272258981,1.39134925,639.08,637.23,0.28802144]
[1739272259181,1.39134925,639.08,637.24,0.28802144]
[1739272259386,1.39134925,639.08,637.18,0.28802144]
[1739272259581,1.39134925,639.08,637.19,0.28802144]
[1739272259783,1.39134925,639.08,637.18,0.28802144]
[1739272261190,1.39134925,639.0,637.2,1.16062582]
[1739272261390,1.39134925,639.0,637.21,0.28802144]
[1739272262185,0.31299884,638.98,637.21,0.28802144]
[1739272263491,0.31299884,638.98,637.22,0.28807251]
[1739272263692,0.31299884,638.98,637.2,1.16062582]
[1739272264089,0.31299884,638.98,637.21,0.28807764]
[1739272264284,0.31299884,638.98,637.22,0.28807764]
[1739272264493,0.31299884,638.98,637.11,0.28807764]
[1739272264686,0.31299884,638.98,637.12,0.28807764]
[1739272264890,0.31299884,638.98,637.11,0.28807764]
[1739272265495,0.31299884,638.98,637.12,0.28809038]
[1739272265691,0.31299884,638.98,637.11,0.28809038]
[1739272266393,0.31299884,638.98,637.1,1.16062582]
[1739272266591,1.39134925,638.85,637.1,1.16062582]
[1739272266790,0.31307233,638.83,637.11,0.28806039]
[1739272267393,0.31307233,638.83,637.1,1.16062582]
[1739272267594,0.31307233,638.83,637.11,0.28807348]
[1739272267791,0.31307233,638.83,637.1,1.16062582]
[1739272269197,0.31307233,638.83,636.97,1.16062582]
[1739272269400,0.31307233,638.83,636.98,0.28808458]
[1739272270493,0.31307233,638.83,636.97,1.16062582]
[1739272270700,0.31307233,638.83,636.98,0.28809161]
[1739272272402,0.31307233,638.83,636.99,0.28806703]
[1739272272701,0.31307233,638.83,637.0,0.28806703]
[1739272272901,0.31307233,638.83,636.97,1.16062582]
[1739272272902,0.31307233,638.83,637.05,1.16062582]
[1739272273301,0.31307233,638.83,637.06,0.28806703]
[1739272275202,0.31307233,638.83,637.28,1.16062582]
[1739272275394,0.31307233,638.83,637.29,0.28806703]
[1739272277606,0.31307233,638.83,637.33,1.16062582]
[1739272277806,0.31307233,638.83,637.34,0.28806703]
[1739272280211,0.31307233,638.83,637.44,1.16062582]
[1739272280411,0.31307233,638.83,637.45,0.28806703]
[1739272283311,0.31307233,638.83,637.33,0.28806703]
[1739272283512,0.31307233,638.83,637.34,0.28806703]
[1739272283813,0.31307233,638.83,637.35,0.28806703]
[1739272284013,0.31307233,638.83,637.33,0.28806703]
[1739272284213,0.31307233,638.83,637.34,0.28806703]
[1739272284408,0.31307233,638.83,637.33,0.28806703]
[1739272285207,0.31307233,638.83,637.32,1.16062582]
[1739272285412,0.31307233,638.83,637.33,0.28790894]
[1739272286315,0.31307233,638.83,637.26,0.28790894]
[1739272286516,0.31307233,638.83,637.27,0.28790894]
[1739272286717,0.31307233,638.83,637.28,0.28790894]
[1739272287015,0.31307233,638.83,637.29,0.28790894]
[1739272287215,0.31307233,638.83,637.3,0.28794916]
[1739272287408,0.31307233,638.83,637.26,0.28794916]
[1739272287613,0.31307233,638.83,637.27,0.28794916]
[1739272287910,0.31307233,638.83,637.28,0.28794916]
[1739272288114,0.31307233,638.83,637.26,0.28794916]
[1739272288311,0.31307233,638.83,637.27,0.28794916]
[1739272288516,0.31307233,638.83,637.26,0.28794916]
[1739272288717,0.31307233,638.83,637.27,0.28794916]
[1739272288916,0.31307233,638.83,637.28,0.28794916]
[1739272289217,0.31307233,638.83,637.29,0.28794916]
[1739272289413,0.31307233,638.83,637.16,0.28794916]
[1739272289612,0.31307233,638.83,637.17,0.28794916]
[1739272289814,0.31307233,638.83,637.16,0.9397902]
[1739272290017,0.31307233,638.83,637.16,0.28794916]
[1739272290319,0.31307233,638.83,637.16,0.93979712]
[1739272290721,0.31307233,638.83,637.15,1.16062582]
[1739272290918,0.31307233,638.83,637.17,1.16062582]
[1739272291111,0.31307233,638.83,637.18,0.28795413]
[1739272292219,0.31307233,638.83,637.18,0.93975211]
[1739272293622,0.31307233,638.83,637.25,1.16062582]
[1739272293815,0.31307233,638.83,637.26,0.93975211]
[1739272294423,0.31307233,638.83,637.25,1.16062582]
[1739272294716,0.31307233,638.83,637.26,0.93965165]
[1739272295116,0.31307233,638.83,637.26,0.28790409]
[1739272295321,0.31307233,638.83,637.27,0.28790409]
[1739272295521,0.31307233,638.83,637.26,0.28790409]
[1739272296323,0.31307233,638.83,637.27,0.28792912]
[1739272296518,0.31307233,638.83,637.29,1.16062582]
[1739272296723,0.31307233,638.83,637.3,0.28792912]
[1739272298923,0.31307233,638.83,637.3,0.93968336]
[1739272299321,0.31307233,638.83,637.31,0.93968336]
[1739272299522,0.31307233,638.83,637.29,0.93968336]
[1739272299722,0.31307233,638.83,637.3,0.93968418]
[1739272300022,0.31307233,638.83,637.31,0.28791484]
[1739272300323,0.31307233,638.83,637.32,0.28791484]
[1739272300525,0.31307233,638.83,637.29,0.28791484]
[1739272300726,0.31307233,638.83,637.3,0.28791484]
[1739272301025,0.31307233,638.83,637.31,0.28791484]
[1739272301324,0.31307233,638.83,637.32,0.28791484]
[1739272301525,0.31307233,638.83,637.28,1.16062582]
[1739272301722,0.31307233,638.83,637.29,0.28791585]
[1739272303325,0.31307233,638.83,637.3,0.28791624]
[1739272303525,0.31307233,638.83,637.31,0.28791624]
[1739272303723,0.31307233,638.83,637.32,0.28791624]
[1739272306330,0.31307233,638.83,637.36,1.16062582]
[1739272306530,0.31307233,638.83,637.37,0.28791624]
[1739272308532,0.31307233,638.83,637.36,1.16062582]
[1739272308733,0.31307233,638.83,637.37,0.28788303]
[1739272308927,0.31307233,638.83,637.49,1.16062582]
[1739272309124,0.31307233,638.83,637.5,0.28788303]
[1739272312434,0.31307233,638.83,637.66,1.16062582]
[1739272314736,0.31307233,638.83,637.54,1.16062582]
[1739272315035,0.31307233,638.83,637.55,0.2878275]
[1739272315633,0.31307233,638.83,637.56,0.2877957]
[1739272315835,0.31307233,638.83,637.57,0.2877957]
[1739272316035,0.31307233,638.83,637.58,0.2877957]
[1739272316231,0.31307233,638.83,637.59,0.2877957]
[1739272316435,0.31307233,638.83,637.6,0.2877957]
[1739272316630,0.31307233,638.83,637.61,0.2877957]
[1739272316835,0.31307233,638.83,637.62,0.2877957]
[1739272317036,0.31307233,638.83,637.63,0.2877957]
[1739272317234,0.31307233,638.83,637.64,0.2877957]
[1739272317431,0.31307233,638.83,637.65,0.2877957]
[1739272317630,0.31307233,638.83,637.66,0.2877957]
[1739272317935,0.31307233,638.83,637.67,0.2877957]
[1739272318135,0.31307233,638.83,637.59,0.2877957]
[1739272318337,0.31307233,638.83,637.6,0.2877957]
[1739272318635,0.31307233,638.83,637.61,0.2877957]
[1739272318836,0.31307233,638.83,637.62,0.2877957]
[1739272319135,0.31307233,638.83,637.58,1.16062582]
[1739272319136,0.31307233,638.83,637.63,0.28775916]
[1739272319335,0.31307233,638.83,637.64,0.28775916]
[1739272319535,0.31307233,638.83,637.65,0.28775916]
[1739272319835,0.31307233,638.83,637.66,0.28775916]
[1739272320036,0.31307233,638.83,637.59,0.28775916]
[1739272320236,0.31307233,638.83,637.68,1.16062582]
[1739272320536,0.31307233,638.83,637.69,0.28775916]
[1739272323036,0.31307233,638.83,637.74,1.16062582]
[1739272323336,0.31307233,638.83,637.75,0.28775916]
[1739272326139,0.31307233,638.83,637.72,0.28775916]
[1739272326338,0.31307233,638.83,637.73,0.28775916]
[1739272326539,0.31307233,638.83,637.74,0.28775916]
[1739272326735,0.31307233,638.83,637.75,0.28775916]
[1739272326938,0.31307233,638.83,637.72,0.28775916]
[1739272327135,0.31307233,638.83,637.73,0.28775916]
[1739272327336,0.31307233,638.83,637.74,0.28775916]
[1739272327541,0.31307233,638.83,637.72,0.28775916]
[1739272327739,0.31307233,638.83,637.73,0.28775916]
[1739272328040,0.31307233,638.83,637.76,1.16062582]
[1739272328241,0.31307233,638.83,637.77,0.28775916]
[1739272329541,0.31307233,638.83,637.78,0.2877048]
[1739272329742,0.31307233,638.83,637.77,0.2877048]
[1739272329939,0.31307233,638.83,637.78,0.2877048]
[1739272330138,0.31307233,638.83,637.76,1.16062582]
[1739272330139,0.31307233,638.83,637.77,0.2877048]
[1739272330334,0.31307233,638.83,637.78,0.2877048]
[1739272330539,0.31307233,638.83,630.65,0.56708745]
[1739272330540,0.31307233,638.83,637.82,1.16062582]
[1739272330738,0.31307233,638.83,637.83,0.2877048]
[1739272332840,0.31307233,638.83,637.84,0.28770825]
[1739272333038,0.31307233,638.83,637.8,0.28770825]
[1739272334042,0.31307233,638.83,637.8,0.939035]
[1739272334438,0.31307233,638.83,637.79,1.16062582]
[1739272334643,0.31307233,638.83,637.8,0.93886973]
[1739272334844,0.31307233,638.83,637.81,0.28764663]
[1739272335045,0.31307233,638.83,637.82,0.28764663]
[1739272335244,0.31307233,638.83,637.83,0.28764663]
[1739272335446,0.31307233,638.83,637.84,0.28764663]
[1739272335746,0.31307233,638.83,637.85,0.28764663]
[1739272335942,0.31307233,638.83,637.86,0.28764663]
[1739272336142,0.31307233,638.83,637.87,0.28764663]
[1739272336340,0.31307233,638.83,637.84,1.16062582]
[1739272336540,0.31307233,638.83,637.85,0.93881575]
[1739272336746,0.31307233,638.83,637.86,0.28762917]
[1739272336946,0.31307233,638.83,637.87,0.28762917]
[1739272337142,0.31307233,638.83,637.88,0.28762917]
[1739272337448,0.31307233,638.83,637.89,0.28762917]
[1739272337644,0.31307233,638.83,637.9,0.28762917]
[1739272337843,0.31307233,638.83,637.96,1.16062582]
[1739272338040,0.31307233,638.83,637.97,0.93881575]
[1739272338641,0.31307233,638.83,637.97,0.28762917]
[1739272338843,0.31307233,638.83,637.97,0.93883779]
[1739272339047,0.31307233,638.83,637.97,0.28762917]
[1739272341449,0.31307233,638.83,637.95,1.16062582]
[1739272341748,0.31307233,638.83,637.96,0.28764327]
[1739272342049,0.31307233,638.83,637.95,1.16062582]
[1739272342248,0.31307233,638.83,637.96,0.28763909]
[1739272343346,0.31307233,638.83,637.96,1.16062582]
[1739272343551,0.31307233,638.83,637.97,0.28760648]
[1739272345951,0.31307233,638.83,638.03,1.16062582]
[1739272346247,0.31307233,638.83,638.04,0.28760648]
[1739272346847,0.31307233,638.83,638.03,1.16062582]
[1739272347048,0.31307233,638.83,638.05,0.28764394]
[1739272347254,0.31307233,638.83,638.04,0.28764394]
[1739272347452,0.31307233,638.83,638.03,1.16062582]
[1739272347453,0.31307233,638.83,638.05,0.28764394]
[1739272347754,0.31307233,638.83,638.06,0.28764394]
[1739272348351,0.31307233,638.83,638.07,0.28764394]
[1739272348549,0.31307233,638.83,638.03,1.16062582]
[1739272349047,0.31307233,638.83,638.04,0.28771806]
[1739272349653,0.31307233,638.83,638.05,0.28771806]
[1739272349850,0.31307233,638.83,637.98,0.28774013]
[1739272350051,0.31307233,638.83,637.97,1.16062582]
[1739272350354,0.31307233,638.83,637.98,0.28774911]
[1739272351255,0.31307233,638.83,637.99,0.28774911]
[1739272351452,0.31307233,638.83,637.85,0.28774911]
[1739272351655,0.31307233,638.83,637.86,0.28774911]
[1739272351854,0.31307233,638.83,637.85,0.28774911]
[1739272352055,0.31307233,638.83,637.86,0.28774911]
[1739272352251,0.31307233,638.83,637.85,0.28774911]
[1739272353452,0.31307233,638.83,637.84,1.16062582]
[1739272353757,0.31307233,638.83,637.85,0.28779745]
[1739272354153,0.31307233,638.83,637.86,0.28779745]
[1739272354456,0.31307233,638.83,637.87,0.28779745]
[1739272354757,0.31307233,638.83,637.88,0.28779745]
[1739272354950,0.31307233,638.83,637.89,0.28779745]
[1739272355155,0.31307233,638.83,637.9,0.28779745]
[1739272355351,0.31307233,638.83,637.74,0.93925217]
[1739272355552,0.31307233,638.83,637.75,0.28779745]
[1739272355754,0.31307233,638.83,637.76,0.28779745]
[1739272355956,0.31307233,638.83,637.84,1.16062582]
[1739272356156,0.31307233,638.83,637.85,0.28779745]
[1739272356458,0.31307233,638.83,637.85,0.93922044]
[1739272358352,0.31307233,638.83,637.86,0.28779745]
[1739272358560,0.31307233,638.83,637.87,0.28779745]
[1739272358762,0.31307233,638.83,637.88,0.28779745]
[1739272358961,0.31307233,638.83,637.89,0.28779745]
[1739272359161,0.31307233,638.83,637.9,0.28779745]
[1739272359361,0.31307233,638.83,637.98,1.16062582]
[1739272359556,0.31307233,638.83,637.99,0.28779745]
[1739272361863,0.31307233,638.83,637.98,1.16062582]
[1739272362163,0.31307233,638.83,638.03,1.16062582]
[1739272362361,0.31307233,638.83,638.04,0.28770504]
[1739272364364,0.31307233,638.83,638.05,0.28770504]
[1739272364565,0.31307233,638.83,638.06,0.28770504]
[1739272364766,0.31307233,638.83,638.0,0.28770504]
[1739272364962,0.31307233,638.83,638.01,0.28770504]
[1739272365162,0.31307233,638.83,638.0,0.28770504]
[1739272365466,0.31307233,638.83,638.01,0.28770504]
[1739272365663,0.31307233,638.83,638.0,0.28770504]
[1739272367771,0.31307233,638.83,638.01,0.28770504]
[1739272367970,0.31307233,638.83,637.97,0.93893243]
[1739272368164,0.31307233,638.83,637.98,0.28770504]
[1739272368361,0.31307233,638.83,637.97,0.93891805]
[1739272368563,0.31307233,638.83,637.98,0.28770504]
[1739272368767,0.31307233,638.83,637.97,0.93892118]
[1739272369072,0.31307233,638.83,637.98,0.28770504]
[1739272369271,0.31307233,638.83,637.99,0.28770504]
[1739272369468,0.31307233,638.83,637.97,0.28770504]
[1739272369666,0.31307233,638.83,637.98,0.28770504]
[1739272369865,0.31307233,638.83,637.97,0.28770504]
[1739272370071,0.31307233,638.83,637.98,0.28770504]
[1739272370372,0.31307233,638.83,637.99,0.28765338]
[1739272370573,0.31307233,638.83,637.97,0.28765338]
[1739272370773,0.31307233,638.83,638.07,1.16062582]
[1739272370973,0.31307233,638.83,638.08,0.28765338]
[1739272372173,0.31307233,638.83,638.09,0.28766254]
[1739272372374,0.31307233,638.83,638.1,0.28766254]
[1739272372568,0.31307233,638.83,638.08,0.28766254]
[1739272373273,0.31307233,638.83,638.09,0.28766254]
[1739272373471,0.31307233,638.83,638.1,0.28766254]
[1739272373773,0.31307233,638.83,638.11,0.28766254]
[1739272373973,0.31307233,638.83,638.06,0.28766254]
[1739272374174,0.31307233,638.83,638.07,0.28766254]
[1739272374376,0.31307233,638.83,638.08,0.28766254]
[1739272374576,0.31307233,638.83,638.09,0.28766254]
[1739272374771,0.31307233,638.83,638.06,0.28766254]
[1739272374973,0.31307233,638.83,638.1,0.28766254]
[1739272375276,0.31307233,638.83,638.11,0.28766254]
[1739272375478,0.31307233,638.83,638.05,1.16062582]
[1739272375677,0.31307233,638.83,638.06,0.28766835]
[1739272376077,0.31307233,638.83,638.07,1.16062582]
[1739272376277,0.31307233,638.83,638.08,0.28766835]
[1739272377383,0.31307233,638.83,638.09,0.28765904]
[1739272377572,0.31307233,638.83,638.08,0.28765904]
[1739272378474,0.31307233,638.83,638.09,1.16062582]
[1739272378677,0.31307233,638.83,638.1,0.28765904]
[1739272381976,0.31307233,638.83,638.11,0.28767975]
[1739272382181,0.31307233,638.83,638.1,0.28767975]
[1739272382377,0.31307233,638.83,638.11,0.28767975]
[1739272382582,0.31307233,638.83,638.1,0.28767975]
[1739272382776,0.31307233,638.83,638.11,0.28767975]
[1739272383082,0.31307233,638.83,638.12,0.28767975]
[1739272383382,0.31307233,638.83,638.13,0.28767975]
[1739272383580,0.31307233,638.83,638.1,0.28767975]
[1739272386785,0.31307233,638.83,638.0,0.28768987]
[1739272386986,0.31307233,638.83,637.99,1.16062582]
[1739272387180,0.31307233,638.83,638.0,0.28768969]
[1739272387385,0.31307233,638.83,638.01,0.28770132]
[1739272387588,0.31307233,638.83,638.02,0.28770132]
[1739272387882,0.31307233,638.83,638.03,0.28770132]
[1739272388085,0.31307233,638.83,638.0,0.28770132]
[1739272388285,0.31307233,638.83,637.99,1.16062582]
[1739272388286,0.31307233,638.83,638.01,0.28770132]
[1739272388478,0.31307233,638.83,638.0,0.28770132]
[1739272388684,0.31307233,638.83,638.02,1.16062582]
[1739272388880,0.31307233,638.83,638.03,0.28770132]
[1739272390885,0.31307233,638.83,638.06,1.16062582]
[1739272393784,0.31307233,638.83,637.95,1.16062582]
[1739272393987,0.31307233,638.83,637.96,0.28775876]
[1739272394282,0.31307233,638.83,637.97,0.28775845]
[1739272394481,0.31307233,638.83,637.95,1.16062582]
[1739272394685,0.31307233,638.83,637.96,0.28775683]
[1739272395790,0.31307233,638.83,637.95,1.16062582]
[1739272395982,0.31307233,638.83,637.96,0.28774403]
[1739272397085,0.31307233,638.83,637.93,0.28774403]
[1739272397283,0.31307233,638.83,637.94,0.28774403]
[1739272397481,0.31307233,638.83,637.93,0.28774403]
[1739272397686,0.31307233,638.83,637.94,0.28774403]
[1739272397885,0.31307233,638.83,637.95,0.28774403]
[1739272398087,0.31307233,638.83,637.93,0.28774403]
[1739272398286,0.31307233,638.83,637.94,0.28774403]
[1739272398490,0.31307233,638.83,637.93,0.28774403]
[1739272400985,0.31307233,638.83,637.92,1.16062582]
[1739272401593,0.31307233,638.83,637.91,1.16062582]
[1739272401791,0.31307233,638.83,637.92,0.28771015]
[1739272402396,0.31307233,638.83,637.91,1.16062582]
[1739272403697,0.31307233,638.83,637.87,1.16062582]
[1739272405692,0.31307233,638.83,637.88,0.28774809]
[1739272406098,0.31307233,638.83,637.89,0.28774809]
[1739272406298,0.31307233,638.83,637.83,0.28774809]
[1739272406493,0.31307233,638.83,637.84,0.28774809]
[1739272406794,0.31307233,638.83,637.85,0.28774809]
[1739272406993,0.31307233,638.83,637.86,0.28774809]
[1739272407193,0.31307233,638.83,637.83,0.93915893]
[1739272407395,0.31307233,638.83,637.84,0.28774809]
[1739272407594,0.31307233,638.83,637.86,1.16062582]
[1739272407799,0.31307233,638.83,638.03,1.16062582]
[1739272408193,0.31307233,638.83,638.04,0.28772219]
[1739272410198,0.31307233,638.83,638.06,1.16062582]
[1739272410399,0.31307233,638.83,638.07,0.28772219]
[1739272413701,0.31307233,638.83,638.06,1.16062582]
[1739272414100,0.31307233,638.83,638.07,0.28772776]
[1739272414902,0.31307233,638.83,638.1,1.16062582]
[1739272415402,0.31307233,638.83,638.11,0.28772776]
[1739272416802,0.31307233,638.83,638.11,1.44835358]
[1739272417000,0.31307233,638.83,638.12,0.28772776]
[1739272420009,0.31307233,638.83,638.14,1.16062582]
[1739272420309,0.31307233,638.83,638.15,0.28772776]
[1739272422311,0.31307233,638.83,638.1,0.28772776]
[1739272422512,0.31307233,638.83,638.11,0.28772776]
[1739272422811,0.31307233,638.83,638.12,0.28772776]
[1739272423007,0.31307233,638.83,638.13,0.28772776]
[1739272423205,0.31307233,638.83,638.1,0.28772776]
[1739272423508,0.31307233,638.83,638.11,0.28772776]
[1739272423710,0.31307233,638.83,638.12,0.28772776]
[1739272424005,0.31307233,638.83,638.13,0.28772776]
[1739272424210,0.31307233,638.83,638.09,1.16062582]
[1739272424411,0.31307233,638.83,638.1,0.28767439]
[1739272424613,0.31307233,638.83,638.09,0.28767439]
[1739272424808,0.31307233,638.83,638.1,0.28766726]
[1739272425007,0.31307233,638.83,638.09,0.28766726]
[1739272425215,0.31307233,638.83,638.1,0.28766726]
[1739272425512,0.31307233,638.83,638.08,1.16062582]
[1739272425811,0.31307233,638.83,638.09,0.28766354]
[1739272427415,0.31307233,638.83,638.08,1.16062582]
[1739272427616,0.31307233,638.83,638.09,0.28766882]
[1739272429218,0.31307233,638.83,638.08,0.28766882]
[1739272429417,0.31307233,638.83,638.09,0.28766882]
[1739272429620,0.31307233,638.83,638.1,0.28766882]
[1739272429811,0.31307233,638.83,638.08,0.28766882]
[1739272430016,0.31307233,638.83,638.09,0.28766882]
[1739272430220,0.31307233,638.83,638.07,1.16062582]
[1739272431018,0.31307233,638.83,638.08,1.16062582]
[1739272433215,0.31307233,638.83,638.02,1.16062582]
[1739272433414,0.31307233,638.83,638.03,0.28766631]
[1739272433817,0.31307233,638.83,638.02,1.16062582]
[1739272434019,0.31307233,638.83,638.03,0.28767827]
[1739272434320,0.31307233,638.83,638.02,1.16062582]
[1739272434621,0.31307233,638.83,638.03,0.28767844]
[1739272435520,0.31307233,638.83,638.01,0.28767844]
[1739272435715,0.31307233,638.83,638.04,0.28767844]
[1739272435914,0.31307233,638.83,638.05,0.28767844]
[1739272436117,0.31307233,638.83,638.01,0.28767844]
[1739272436314,0.31307233,638.83,638.02,0.28766657]
[1739272436514,0.31307233,638.83,638.03,0.28766657]
[1739272436820,0.31307233,638.83,638.04,0.28766657]
[1739272437119,0.31307233,638.83,638.0,1.16062582]
[1739272437319,0.31307233,638.83,638.01,0.28767066]
[1739272437814,0.31307233,638.83,638.02,0.28766896]
[1739272438017,0.31307233,638.83,638.03,0.28766896]
[1739272438213,0.31307233,638.83,638.0,0.28766896]
[1739272438418,0.31307233,638.83,637.99,1.16062582]
[1739272438618,0.31307233,638.83,638.0,0.28767588]
[1739272439813,0.31307233,638.83,637.99,0.28767588]
[1739272440120,0.31307233,638.83,638.0,0.28767588]
[1739272440319,0.31307233,638.83,637.99,0.28767588]
[1739272440520,0.31307233,638.83,638.0,0.28767588]
[1739272440713,0.31307233,638.83,637.98,1.16062582]
[1739272440714,0.31307233,638.83,637.99,0.28767588]
[1739272440919,0.31307233,638.83,638.0,0.28767588]
[1739272441219,0.31307233,638.83,638.01,0.28767588]
[1739272441414,0.31307233,638.83,638.02,0.28767588]
[1739272441617,0.31307233,638.83,638.03,0.28767588]
[1739272441812,0.31307233,638.83,638.04,0.28767588]
[1739272442019,0.31307233,638.83,638.05,0.28767588]
[1739272442220,0.31307233,638.83,637.99,0.28767588]
[1739272442521,0.31307233,638.83,638.1,1.16062582]
[1739272442721,0.31307233,638.83,638.11,0.28767588]
[1739272444220,0.31307233,638.83,638.1,1.16062582]
[1739272444422,0.31307233,638.83,638.11,0.28766324]
[1739272445415,0.31307233,638.83,638.17,1.16062582]
[1739272445619,0.31307233,638.83,638.18,0.28766324]
[1739272447623,0.31307233,638.83,638.17,1.16062582]
[1739272447925,0.31307233,638.83,638.18,0.28762287]
[1739272448519,0.31307233,638.83,638.31,1.16062582]
[1739272448718,0.31307233,638.83,638.32,0.28762287]
[1739272449628,0.31307233,638.83,638.31,1.16062582]
[1739272449629,0.31307233,638.83,638.33,0.28757144]
[1739272449827,2.68411494,639.9,638.34,0.28757144]
[1739272450125,2.68411494,639.9,638.35,0.28757144]
[1739272450326,0.3125586,639.88,638.35,0.28757144]
[1739272450527,0.3125586,639.88,638.36,0.28757144]
[1739272450825,0.3125586,639.88,638.37,0.28757144]
[1739272451126,0.3125586,639.88,638.38,0.28757144]
[1739272451326,0.3125586,639.88,638.39,0.28756987]
[1739272451625,0.3125586,639.88,638.4,0.28756987]
[1739272451826,0.3125586,639.88,638.41,0.28756987]
[1739272452021,0.3125586,639.88,638.42,0.28756987]
[1739272452225,0.3125586,639.88,638.32,0.2875636]
[1739272452525,0.3125586,639.88,638.33,0.28756549]
[1739272452826,0.3125586,639.88,638.47,1.16062582]
[1739272455626,0.3125586,639.88,638.29,1.16062582]
[1739272455826,0.3125586,639.88,638.3,0.28756607]
[1739272456126,0.3125586,639.88,638.31,0.28757562]
[1739272456319,0.3125586,639.88,638.3,0.28757562]
[1739272456521,0.3125586,639.88,638.31,0.28757934]
[1739272456724,0.3125586,639.88,638.3,0.28757934]
[1739272456924,0.3125586,639.88,638.31,0.28757934]
[1739272457123,0.3125586,639.88,638.3,0.28757934]
[1739272457424,0.3125586,639.88,638.31,0.28757934]
[1739272457628,0.3125586,639.88,638.32,0.28757934]
[1739272457828,0.3125586,639.88,638.3,0.28757934]
[1739272458138,0.3125586,639.88,638.31,0.28757934]
[1739272458331,0.3125586,639.88,638.3,0.28757934]
[1739272459225,0.3125586,639.88,638.25,0.28757934]
[1739272459425,0.3125586,639.88,638.24,1.16062582]
[1739272459728,0.3125586,639.88,638.25,0.28760553]
[1739272459931,0.3125586,639.88,638.26,0.2876034]
[1739272460123,0.3125586,639.88,638.25,0.2876034]
[1739272460326,0.3125586,639.88,638.24,1.16062582]
[1739272462725,0.3125586,639.88,637.82,1.16062582]
[1739272462930,0.3125586,639.88,637.83,0.28766111]
[1739272463525,0.3125586,639.88,637.84,0.28766227]
[1739272463724,0.3125586,639.88,637.83,0.28766227]
[1739272463930,0.3125586,639.88,637.84,0.28766227]
[1739272464133,0.3125586,639.88,637.85,0.28766227]
[1739272464327,0.3125586,639.88,637.86,0.28766227]
[1739272464532,0.3125586,639.88,637.83,0.28766227]
[1739272464833,0.3125586,639.88,637.84,0.28766227]
[1739272465033,0.3125586,639.88,637.83,0.28766227]
[1739272465231,0.3125586,639.88,637.82,1.16062582]
[1739272465428,0.3125586,639.88,637.15,1.39275098]
[1739272465429,0.3125586,639.88,637.87,1.16062582]
[1739272465631,0.3125586,639.88,637.88,0.28766087]
[1739272468232,0.3125586,639.88,637.89,0.28766087]
[1739272468432,0.3125586,639.88,637.78,0.28766087]
[1739272468633,0.3125586,639.88,637.9,0.28766087]
[1739272468833,0.3125586,639.88,637.91,0.28766087]
[1739272469030,0.3125586,639.88,637.78,0.28766087]
[1739272469229,0.3125586,639.88,637.77,1.16062582]
[1739272469535,0.3125586,639.88,637.78,0.28766408]
[1739272470829,0.3125586,639.88,637.72,0.28766408]